[Event "44th Chess Olympiad Women 2022"]
[Site "Chennai"]
[Date "2022.08.07"]
[Round "9.5"]
[White "Klek, Hanna Marie"]
[Black "Kalaiyalahan, Akshaya"]
[Result "1-0"]
[WhiteElo "2366"]
[BlackElo "2158"]
[Annotator "RC"]
[PlyCount "95"]
[EventDate "2022.??.??"]
[TimeControl "60"]

1. e4 {[%emt 0:00:03]} e6 {[%emt 0:00:06]} 2. d4 {[%emt 0:00:09]} d5 {[%emt 0:
00:00]} 3. e5 {[%emt 0:01:42]} c5 {[%emt 0:00:11]} 4. c3 {[%emt 0:00:05]} Qb6 {
[%emt 0:00:12]} 5. Nf3 {[%emt 0:00:14]} Bd7 {[%emt 0:00:10]} 6. Bd3 {[%emt 0:
00:00]} cxd4 {[%emt 0:00:26]} 7. cxd4 {[%emt 0:01:39]} Bb5 {[%emt 0:00:14]} 8.
O-O {[%emt 0:02:32]} Bxd3 {[%emt 0:00:57]} 9. Qxd3 {[%emt 0:00:06]} Nc6 {
[%emt 0:00:27]} 10. Nc3 {[%emt 0:03:44]} Bb4 {[%emt 0:02:29]} 11. Ne2 {[%emt 0:
00:00]} Qd8 {[%emt 0:03:17]} 12. a3 {[%emt 0:04:16]} Ba5 {[%emt 0:00:18]} 13.
h4 {[%emt 0:04:12]} Nge7 {[%emt 0:03:49]} 14. h5 {[%emt 0:01:46]} h6 {[%emt 0:
00:00]} 15. Ng3 {[%emt 0:01:37]} Bb6 {[%emt 0:01:07]} 16. Be3 {[%emt 0:00:47]}
Qd7 {[%emt 0:02:11]} 17. Nh4 {[%emt 0:06:37]} O-O {[%emt 0:05:11]} 18. b4 {
[%emt 0:08:54]} Rac8 {[%emt 0:00:56]} 19. Rad1 {[%emt 0:03:05]} f5 {[%emt 0:00:
00]} 20. exf6 {[%emt 0:02:04]} Rxf6 {[%emt 0:00:05]} 21. Qe2 {[%emt 0:11:14]}
Re8 {[%emt 0:02:42]} 22. Qg4 {[%emt 0:01:46]} a6 {[%emt 0:05:20]} 23. Rfe1 {
[%emt 0:07:46]} Ref8 {[%emt 0:10:36]} 24. Ne2 {[%emt 0:03:26]} Bc7 {[%emt 0:00:
00]} 25. Nc1 {[%emt 0:03:58]} Nf5 {[%emt 0:01:34]} 26. Ng6 {[%emt 0:02:54]} Re8
{[%emt 0:10:45]} 27. Nd3 {[%emt 0:01:17]} Nxe3 {[%emt 0:03:22]} 28. Rxe3 {
[%emt 0:00:49]} Qd6 {[%emt 0:03:14]} 29. g3 {[%emt 0:04:34]} Ne7 {[%emt 0:00:
00]} 30. Nxe7+ {[%emt 0:00:59]} Qxe7 {[%emt 0:01:13]} 31. Rde1 {[%emt 0:02:56]}
Bd6 {[%emt 0:05:18]} 32. Qe2 {[%emt 0:01:07]} Qf7 {[%emt 0:00:50]} 33. Nc5 {
[%emt 0:02:52]} Bxc5 {[%emt 0:00:19]} 34. bxc5 {[%emt 0:00:05]} Rf8 {[%emt 0:
00:00]} 35. f4 {[%emt 0:01:25]} Re8 {[%emt 0:01:11]} 36. Rb1 {[%emt 0:01:16]}
Rf5 {[%emt 0:03:04]} 37. Rb6 {[%emt 0:00:12]} Qf6 {[%emt 0:10:04]} 38. Qd1 {
[%emt 0:01:50]} Qf7 {[%emt 0:01:50]} 39. Reb3 {[%emt 0:04:17]} Re7 {[%emt 0:00:
00]} 40. Qb1 {[%emt 0:01:44]} Qxh5 {[%emt 0:02:48]} 41. Qd3 {[%emt 0:15:21]}
Qh3 {[%emt 0:10:50]} 42. Rxb7 {[%emt 0:03:21]} Rxb7 {[%emt 0:00:35]} 43. Rxb7 {
[%emt 0:00:05]} Rxf4 {[%emt 0:03:16]} 44. c6 {[%emt 0:03:49]} Re4 {[%emt 0:00:
00]} 45. Rb8+ {[%emt 0:00:48]} Kf7 {[%emt 0:00:13]} 46. Qf1+ {[%emt 0:00:19]}
Qxf1+ {[%emt 0:01:17]} 47. Kxf1 {[%emt 0:00:06]} Rxd4 {[%emt 0:00:24]} 48. c7 {
[%emt 0:00:12]} 1-0

[Event "44th Chess Olympiad Women 2022"]
[Site "Chennai"]
[Date "2022.08.07"]
[Round "9.5"]
[White "Paehtz, Elisabeth"]
[Black "Houska, Jovanka"]
[Result "1/2-1/2"]
[WhiteElo "2484"]
[BlackElo "2360"]
[Annotator "TA"]
[PlyCount "64"]
[EventDate "2022.??.??"]
[TimeControl "60"]

{[%evp 9,64,19,22,7,7,0,4,22,121,114,106,114,128,129,118,85,94,107,86,102,121,
106,114,107,131,118,117,117,117,120,140,139,144,114,114,85,85,74,73,79,90,62,
73,22,25,39,34,19,21,30,39,9,41,0,37,0,52]} 1. d4 {[%emt 0:00:02]} d5 {[%emt 0:
00:00]} 2. c4 {[%emt 0:00:04]} c6 {[%emt 0:00:08]} 3. Nf3 {[%emt 0:00:03]} Nf6
{[%emt 0:00:06]} 4. g3 {[%emt 0:00:04]} Bg4 {[%emt 0:00:34]} 5. Ne5 {[%emt 0:
00:00]} Bf5 {[%emt 0:00:04]} 6. Qb3 {[%emt 0:00:12] D11: Slav Defence: 3 Nf3
sidelines and 3...Nf6 4 e3 Bg4.} Qb6 {[%emt 0:02:40]} 7. cxd5 {[%emt 0:00:10]}
Qxb3 {[%emt 0:14:49]} 8. axb3 {[%emt 0:00:28]} Bxb1 {[%emt 0:01:54] [#]} (8...
Nxd5 $11 9. Bg2 f6) 9. dxc6 $1 $16 {[%emt 0:11:14]} ({Don't play} 9. Rxb1 $6
cxd5 10. Bg2 e6 $11) 9... Nxc6 {[%emt 0:00:04] Threatens to win with ...Be4.}
10. Rxb1 {[%emt 0:00:05]} e6 {[%emt 0:03:14]} 11. Nxc6 {[%emt 0:08:01]} bxc6 {
[%emt 0:00:04] [#]} 12. e3 $146 {[%emt 0:02:02]} ({Predecessor:} 12. Bg2 Bb4+
13. Bd2 Bxd2+ 14. Kxd2 Kd7 15. Rhc1 Rhc8 16. Ra1 Rc7 17. e4 Rb8 18. Rc3 {
½-½ (101) Dordzhieva,D (2340)-Smirnova,E (2266) Rijeka 2020}) 12... Bb4+ {
[%emt 0:04:49]} 13. Bd2 {[%emt 0:03:33]} Bxd2+ {[%emt 0:00:09]} 14. Kxd2 {
[%emt 0:00:03]} Ne4+ {[%emt 0:00:04]} 15. Ke2 {[%emt 0:05:02]} Kd7 {[%emt 0:00:
00]} 16. Bg2 {[%emt 0:00:06]} Nf6 {[%emt 0:02:39]} 17. Rhc1 {[%emt 0:03:22]}
Nd5 {[%emt 0:00:24]} 18. Ra1 {[%emt 0:12:54]} Rhb8 {[%emt 0:01:54]} 19. Ra3 {
[%emt 0:00:18]} Rb6 {[%emt 0:03:37]} 20. Kd2 {[%emt 0:11:44]} Nc7 {[%emt 0:00:
00]} 21. Ra5 {[%emt 0:01:00]} a6 {[%emt 0:04:25]} 22. Rac5 {[%emt 0:09:17]
White is much more active.} Nd5 {[%emt 0:00:14]} 23. e4 {[%emt 0:01:57]} Ne7 {
[%emt 0:00:12]} 24. R1c3 {[%emt 0:00:31]} Rab8 {[%emt 0:07:54]} 25. Kc2 {
[%emt 0:00:27]} f5 {[%emt 0:13:28]} 26. d5 {[%emt 0:14:52]} (26. Re5 $16) 26...
cxd5 $1 $11 {[%emt 0:08:35]} 27. Rc7+ {[%emt 0:01:02]} Kd8 $1 {[%emt 0:00:48]}
28. exd5 {[%emt 0:00:04]} exd5 {[%emt 0:00:18]} 29. Ra7 {[%emt 0:00:05]} R8b7 {
[%emt 0:06:42] Prevents Rc7.} 30. Ra8+ {[%emt 0:01:32]} Rb8 {[%emt 0:03:10]}
31. Ra7 {[%emt 0:00:31]} R8b7 {[%emt 0:00:04] Prevents Rc7.} 32. Ra8+ {[%emt 0:
00:00]} Rb8 {[%emt 0:00:07] White really could win this. Weighted Error Value:
White=0.13 (very precise) /Black=0.13 (very precise)} 1/2-1/2

[Event "44th Chess Olympiad Women 2022"]
[Site "Chennai"]
[Date "2022.08.07"]
[Round "9.5"]
[White "Toma, Katarzyna"]
[Black "Heinemann, Josefine"]
[Result "0-1"]
[WhiteElo "2303"]
[BlackElo "2321"]
[Annotator "RC"]
[PlyCount "114"]
[EventDate "2022.??.??"]
[TimeControl "60"]

1. e4 {[%emt 0:00:03]} c5 {[%emt 0:00:12]} 2. Nf3 {[%emt 0:00:08]} d6 {[%emt 0:
00:00]} 3. d4 {[%emt 0:00:08]} cxd4 {[%emt 0:00:04]} 4. Nxd4 {[%emt 0:00:06]}
Nf6 {[%emt 0:00:06]} 5. f3 {[%emt 0:00:09]} e5 {[%emt 0:02:35]} 6. Nb3 {
[%emt 0:00:06]} d5 {[%emt 0:00:26]} 7. Bg5 {[%emt 0:00:29]} Be6 {[%emt 0:00:57]
} 8. Bxf6 {[%emt 0:00:27]} gxf6 {[%emt 0:00:05]} 9. exd5 {[%emt 0:00:07]} Qxd5
{[%emt 0:00:07]} 10. Qxd5 {[%emt 0:02:17]} Bxd5 {[%emt 0:00:04]} 11. Nc3 {
[%emt 0:00:06]} Be6 {[%emt 0:01:01]} 12. O-O-O {[%emt 0:07:33]} Nc6 {[%emt 0:
00:00]} 13. Ne4 {[%emt 0:11:20]} Bh6+ {[%emt 0:07:28]} 14. Kb1 {[%emt 0:00:08]}
Ke7 {[%emt 0:00:22]} 15. Nec5 {[%emt 0:03:14]} b6 {[%emt 0:05:34]} 16. Nxe6 {
[%emt 0:01:08]} fxe6 {[%emt 0:01:01]} 17. Bb5 {[%emt 0:05:44]} Rac8 {[%emt 0:
00:00]} 18. Rd3 {[%emt 0:02:49]} Rhd8 {[%emt 0:04:12]} 19. Rhd1 {[%emt 0:03:26]
} Rc7 {[%emt 0:11:43]} 20. c3 {[%emt 0:05:18]} Rxd3 {[%emt 0:02:08]} 21. Rxd3 {
[%emt 0:02:06]} Nd8 {[%emt 0:01:44]} 22. Rd1 {[%emt 0:07:59]} Nf7 {[%emt 0:00:
00]} 23. a4 {[%emt 0:03:33]} a5 {[%emt 0:06:37]} 24. Nd2 {[%emt 0:04:09]} Bxd2
{[%emt 0:03:42]} 25. Rxd2 {[%emt 0:00:08]} Nd6 {[%emt 0:00:07]} 26. Bd3 {
[%emt 0:02:20]} h6 {[%emt 0:07:20]} 27. Re2 {[%emt 0:01:59]} Rc8 {[%emt 0:00:
00]} 28. Kc2 {[%emt 0:01:17]} h5 {[%emt 0:07:15]} 29. b3 {[%emt 0:01:25]} h4 {
[%emt 0:03:19]} 30. Kb2 {[%emt 0:01:02]} Rg8 {[%emt 0:01:55]} 31. b4 {[%emt 0:
00:00]} f5 {[%emt 0:01:23]} 32. Kb3 {[%emt 0:01:55]} Kf6 {[%emt 0:01:54]} 33.
Bc2 {[%emt 0:05:11]} Rc8 {[%emt 0:03:36]} 34. Bd3 {[%emt 0:07:01]} Rc7 {
[%emt 0:00:09]} 35. Re1 {[%emt 0:02:52]} Nf7 {[%emt 0:02:51]} 36. Re3 {[%emt 0:
00:00]} Ng5 {[%emt 0:02:56]} 37. Be2 {[%emt 0:02:33]} Nf7 {[%emt 0:03:46]} 38.
Rd3 {[%emt 0:01:52]} Ke7 {[%emt 0:00:09]} 39. Bf1 {[%emt 0:01:07]} Rc8 {
[%emt 0:01:10]} 40. Rd2 {[%emt 0:00:31]} Nd6 {[%emt 0:00:44]} 41. c4 {[%emt 0:
00:00]} axb4 {[%emt 0:02:01]} 42. Kxb4 {[%emt 0:00:09]} Rc5 {[%emt 0:04:07]}
43. Ra2 {[%emt 0:01:46]} Nb7 {[%emt 0:02:40]} 44. g3 {[%emt 0:03:19]} hxg3 {
[%emt 0:00:42]} 45. hxg3 {[%emt 0:00:04]} Ra5 {[%emt 0:03:51]} 46. Be2 {
[%emt 0:01:58]} Nc5 {[%emt 0:01:10]} 47. Bd1 {[%emt 0:00:18]} e4 {[%emt 0:00:
00]} 48. f4 {[%emt 0:04:49]} Kd6 {[%emt 0:03:54]} 49. Rh2 {[%emt 0:01:05]} Kc6
{[%emt 0:03:49]} 50. Rh6 {[%emt 0:00:43]} Ra8 {[%emt 0:01:00]} 51. Kc3 {
[%emt 0:08:12]} Rg8 {[%emt 0:02:10]} 52. Rh3 {[%emt 0:03:59]} Nd3 {[%emt 0:00:
00]} 53. Be2 {[%emt 0:00:46]} Nf2 {[%emt 0:01:27]} 54. Rh6 {[%emt 0:00:10]}
Rxg3+ {[%emt 0:00:00]} 55. Kd4 {[%emt 0:00:04]} Kd6 {[%emt 0:00:40]} 56. a5 {
[%emt 0:00:09]} Nd3 {[%emt 0:00:32]} 57. axb6 {[%emt 0:00:26]} Nc5 {[%emt 0:00:
00]} 0-1

[Event "44th Chess Olympiad Women 2022"]
[Site "Chennai"]
[Date "2022.08.07"]
[Round "9.5"]
[White "Varney, Zoe"]
[Black "Schneider, Jana"]
[Result "0-1"]
[WhiteElo "2045"]
[BlackElo "2342"]
[Annotator "RC"]
[PlyCount "60"]
[EventDate "2022.??.??"]
[TimeControl "60"]

1. e4 {[%emt 0:00:03]} e5 {[%emt 0:00:08]} 2. Bc4 {[%emt 0:00:04]} Nf6 {
[%emt 0:00:42]} 3. Nf3 {[%emt 0:00:05]} Nc6 {[%emt 0:03:05]} 4. Ng5 {[%emt 0:
00:00]} d5 {[%emt 0:00:28]} 5. exd5 {[%emt 0:00:04]} Na5 {[%emt 0:00:10]} 6.
Bb5+ {[%emt 0:00:04]} c6 {[%emt 0:00:11]} 7. dxc6 {[%emt 0:00:06]} bxc6 {
[%emt 0:00:08]} 8. Bd3 {[%emt 0:00:04]} Nd5 {[%emt 0:03:36]} 9. Nf3 {[%emt 0:
00:00]} Bd6 {[%emt 0:00:25]} 10. O-O {[%emt 0:00:09]} O-O {[%emt 0:00:58]} 11.
Re1 {[%emt 0:00:10]} f5 {[%emt 0:03:50]} 12. Nxe5 {[%emt 0:00:07]} Qf6 {
[%emt 0:00:20]} 13. Nf3 {[%emt 0:00:04]} g5 {[%emt 0:00:49]} 14. c4 {[%emt 0:
00:00]} Nf4 {[%emt 0:01:41]} 15. Bf1 {[%emt 0:00:05]} g4 {[%emt 0:00:27]} 16.
d4 {[%emt 0:00:02]} gxf3 {[%emt 0:00:25]} 17. Qxf3 {[%emt 0:00:11]} Ne6 {
[%emt 0:00:36]} 18. Qc3 {[%emt 0:00:25]} Nxd4 {[%emt 0:01:38]} 19. c5 {[%emt 0:
00:00]} Be5 {[%emt 0:00:46]} 20. Qxa5 {[%emt 0:00:06]} f4 {[%emt 0:00:56]} 21.
Bd2 {[%emt 0:51:42]} f3 {[%emt 0:11:28]} 22. g3 {[%emt 0:20:55]} Ne2+ {[%emt 0:
00:00]} 23. Bxe2 {[%emt 0:05:28]} fxe2 {[%emt 0:00:08]} 24. f4 {[%emt 0:01:43]}
Bxf4 {[%emt 0:11:23]} 25. Bxf4 {[%emt 0:06:44]} Qd4+ {[%emt 0:00:09]} 26. Kg2 {
[%emt 0:00:59]} Qe4+ {[%emt 0:00:21]} 27. Kf2 {[%emt 0:02:03]} Bh3 {[%emt 0:00:
00]} 28. Rxe2 {[%emt 0:08:30]} Rxf4+ {[%emt 0:00:17]} 29. gxf4 {[%emt 0:00:06]}
Qxf4+ {[%emt 0:00:05]} 30. Kg1 {[%emt 0:01:20]} Qf1# {[%emt 0:00:05]} 0-1

[Event "44th Chess Olympiad Women 2022"]
[Site "Chennai"]
[Date "2022.08.07"]
[Round "9.6"]
[White "Ciolacu, Alessia-Mihaela"]
[Black "Sargsyan, Anna M."]
[Result "0-1"]
[WhiteElo "2163"]
[BlackElo "2378"]
[Annotator "RC"]
[PlyCount "104"]
[EventDate "2022.??.??"]
[TimeControl "60"]

1. d4 {[%emt 0:00:04]} d5 {[%emt 0:00:13]} 2. c4 {[%emt 0:00:12]} c6 {[%emt 0:
00:00]} 3. Nf3 {[%emt 0:00:04]} Nf6 {[%emt 0:00:07]} 4. Nbd2 {[%emt 0:00:06]}
g6 {[%emt 0:03:12]} 5. e3 {[%emt 0:00:10]} Bg7 {[%emt 0:00:05]} 6. Be2 {
[%emt 0:00:50]} O-O {[%emt 0:00:09]} 7. O-O {[%emt 0:00:18]} Bf5 {[%emt 0:00:
00]} 8. b3 {[%emt 0:04:26]} Nbd7 {[%emt 0:03:43]} 9. Bb2 {[%emt 0:00:54]} Ne4 {
[%emt 0:00:39]} 10. Nxe4 {[%emt 0:10:20]} Bxe4 {[%emt 0:02:03]} 11. Nd2 {
[%emt 0:01:07]} Bf5 {[%emt 0:00:42]} 12. a3 {[%emt 0:24:07]} a5 {[%emt 0:02:34]
} 13. Rc1 {[%emt 0:00:22]} Nf6 {[%emt 0:03:11]} 14. c5 {[%emt 0:07:39]} Nd7 {
[%emt 0:05:29]} 15. b4 {[%emt 0:00:47]} axb4 {[%emt 0:00:29]} 16. axb4 {
[%emt 0:00:11]} e5 {[%emt 0:00:23]} 17. b5 {[%emt 0:06:05]} exd4 {[%emt 0:00:
00]} 18. exd4 {[%emt 0:00:22]} Re8 {[%emt 0:01:29]} 19. Re1 {[%emt 0:08:13]}
Bh6 {[%emt 0:01:15]} 20. Ra1 {[%emt 0:01:48]} Rxa1 {[%emt 0:01:32]} 21. Bxa1 {
[%emt 0:00:08]} Qa5 {[%emt 0:00:22]} 22. Nf3 {[%emt 0:13:25]} cxb5 {[%emt 0:00:
00]} 23. Qb3 {[%emt 0:04:54]} Rxe2 {[%emt 0:11:15]} 24. Rxe2 {[%emt 0:00:02]}
Qxa1+ {[%emt 0:00:08]} 25. Re1 {[%emt 0:00:03]} Qa6 {[%emt 0:00:17]} 26. Qxd5 {
[%emt 0:00:55]} Be6 {[%emt 0:00:50]} 27. Qe4 {[%emt 0:00:33]} Nf6 {[%emt 0:00:
00]} 28. Qe5 {[%emt 0:01:38]} Nd7 {[%emt 0:00:48]} 29. Qc7 {[%emt 0:01:34]} Qc6
{[%emt 0:01:59]} 30. Qd8+ {[%emt 0:00:26]} Kg7 {[%emt 0:02:07]} 31. h4 {
[%emt 0:04:24]} Nf6 {[%emt 0:27:34]} 32. Ra1 {[%emt 0:04:27]} Qe8 {[%emt 0:00:
00]} 33. Qc7 {[%emt 0:01:19]} Bd5 {[%emt 0:01:05]} 34. Ne5 {[%emt 0:01:05]} Bf4
{[%emt 0:01:15]} 35. Qd6 {[%emt 0:01:27]} Bc6 {[%emt 0:01:08]} 36. Re1 {
[%emt 0:00:52]} Ne4 {[%emt 0:00:23]} 37. Qc7 {[%emt 0:01:03]} Bxe5 {[%emt 0:00:
00]} 38. dxe5 {[%emt 0:00:08]} Nxc5 {[%emt 0:00:28]} 39. Qd6 {[%emt 0:02:15]}
Ne6 {[%emt 0:00:09]} 40. Ra1 {[%emt 0:00:08]} Qd8 {[%emt 0:00:31]} 41. g3 {
[%emt 0:12:42]} Qxd6 {[%emt 0:01:39]} 42. exd6 {[%emt 0:00:02]} Kf6 {[%emt 0:
00:00]} 43. Kf1 {[%emt 0:03:02]} Nc5 {[%emt 0:02:39]} 44. Ke2 {[%emt 0:00:34]}
Ne4 {[%emt 0:00:05]} 45. Ke3 {[%emt 0:01:14]} Nxd6 {[%emt 0:00:09]} 46. Kd4 {
[%emt 0:00:50]} h5 {[%emt 0:00:44]} 47. Ra3 {[%emt 0:00:41]} Ne4 {[%emt 0:00:
00]} 48. Ra2 {[%emt 0:01:07]} Kf5 {[%emt 0:00:24]} 49. Ke3 {[%emt 0:00:29]} Nc3
{[%emt 0:00:17]} 50. Ra8 {[%emt 0:00:34]} b4 {[%emt 0:00:12]} 51. Kd3 {[%emt 0:
00:00]} Ne4 {[%emt 0:00:11]} 52. Ke3 {[%emt 0:00:32]} b3 {[%emt 0:00:13]} 0-1

[Event "44th Chess Olympiad Women 2022"]
[Site "Chennai"]
[Date "2022.08.07"]
[Round "9.6"]
[White "Danielian, Elina"]
[Black "Bulmaga, Irina"]
[Result "0-1"]
[WhiteElo "2441"]
[BlackElo "2394"]
[Annotator "TA"]
[PlyCount "118"]
[EventDate "2022.??.??"]
[TimeControl "60"]

{[%evp 18,118,11,18,6,-1,3,0,7,-8,0,6,6,6,6,8,7,0,2,0,7,8,8,8,8,8,7,7,7,7,7,7,
8,7,12,7,7,8,18,8,22,8,13,0,0,0,0,0,34,-145,-156,-211,-213,-213,-60,-47,-45,
-45,-11,-134,-45,-50,-45,-60,0,-62,0,-91,-92,-266,-266,-254,-112,-244,-244,
-250,-125,-125,-126,-190,-145,-141,-121,-124,-125,-134,0,-230,-230,-230,-230,
-388,-253,-505,-485,-550,-548,-568,-580,-552,-493,-476,-377]} 1. d4 {[%emt 0:
00:00]} Nf6 {[%emt 0:00:08]} 2. Nf3 {[%emt 0:00:14]} e6 {[%emt 0:00:08]} 3. g3
{[%emt 0:00:16]} d5 {[%emt 0:01:30]} 4. Bg2 {[%emt 0:00:05]} Be7 {[%emt 0:00:
00]} 5. c4 {[%emt 0:00:26]} dxc4 {[%emt 0:00:56]} 6. O-O {[%emt 0:01:22]} O-O {
[%emt 0:00:14]} 7. Qc2 {[%emt 0:00:42]} a6 {[%emt 0:00:20]} 8. a4 {[%emt 0:00:
00]} Bd7 {[%emt 0:00:20]} 9. Qxc4 {[%emt 0:00:07]} Bc6 {[%emt 0:00:21]} 10. Bf4
{[%emt 0:01:12]} Bd6 {[%emt 0:01:01] E05: Open Catalan: 5 Nf3 Be7.} 11. Qc1 {
[%emt 0:01:14]} a5 {[%emt 0:02:55]} 12. Nc3 {[%emt 0:00:16]} Na6 {[%emt 0:00:
00] The position is equal.} 13. Bg5 {[%emt 0:07:23][%cal Ye2e4]} Be7 {[%emt 0:
00:00]} 14. Bxf6 {[%emt 0:01:14]} Bxf6 {[%emt 0:00:37]} 15. Rd1 {[%emt 0:00:14]
[#]} Bxf3 $146 {[%emt 0:04:29]} ({Predecessor:} 15... Nb4 16. e4 b6 17. Qd2 Qc8
18. Rac1 Rd8 19. Qf4 Qb7 20. h4 Rd7 21. d5 exd5 {1-0 (47) Marszalek,M (2266)
-Tokarczyk,T (2233) Police 2018}) 16. Bxf3 {[%emt 0:00:04]} c6 {[%emt 0:00:09]}
17. Ne4 {[%emt 0:04:28]} Be7 {[%emt 0:05:49]} 18. Qc4 {[%emt 0:07:02]} Rc8 {
[%emt 0:16:05][%cal Ya8c8,Yc8c7,Yc7d7]} 19. Rac1 {[%emt 0:04:18]} Rc7 {[%emt 0:
05:07]} 20. e3 {[%emt 0:03:42]} Rd7 {[%emt 0:01:40]} 21. Qb3 {[%emt 0:00:00]}
Qb8 {[%emt 0:04:51]} 22. Kg2 {[%emt 0:06:26]} Rfd8 {[%emt 0:02:12]} 23. Be2 {
[%emt 0:16:24]} Nb4 {[%emt 0:01:49]} 24. h4 {[%emt 0:03:52]} h6 {[%emt 0:00:00]
} 25. Bf3 {[%emt 0:08:02]} Na6 {[%emt 0:06:14]} 26. Nc3 {[%emt 0:10:37]} Nb4 {
[%emt 0:04:39]} 27. Qc4 {[%emt 0:04:36]} Qa7 {[%emt 0:03:33]} 28. Ne4 {[%emt 0:
04:46]} Qa6 {[%emt 0:04:59]} 29. Qb3 {[%emt 0:00:47]} Qa7 {[%emt 0:00:00]} 30.
h5 {[%emt 0:02:35]} Qb8 {[%emt 0:02:51]} 31. Nc3 {[%emt 0:01:58]} Bg5 {[%emt 0:
00:54]} 32. Be4 {[%emt 0:00:54]} Nd5 {[%emt 0:02:13]} 33. Bb1 $2 {[%emt 0:01:
25]} (33. Nxd5 $14 {stays ahead.} cxd5 34. Bb1) 33... Bxe3 $1 $17 {[%emt 0:03:
06]} 34. Nxd5 {[%emt 0:00:55]} (34. fxe3 $17 {is a better defense.} Nxe3+ 35.
Kf3 Nxd1 36. Ne2) 34... Bxc1 $19 {[%emt 0:00:24]} 35. Nb6 {[%emt 0:00:00] [#]}
Bg5 $1 {[%emt 0:00:58]} 36. Nxd7 $15 {[%emt 0:00:09]} Rxd7 {[%emt 0:00:07]} 37.
Qc2 {[%emt 0:00:17]} Qd6 {[%emt 0:02:19] ...Kf8 is the strong threat.} 38. Qh7+
{[%emt 0:00:23]} (38. d5 $5 cxd5 39. Qh7+ Kf8 40. Qh8+ Ke7 41. Qxg7 $17) 38...
Kf8 {[%emt 0:00:01]} 39. d5 $1 {[%emt 0:01:11]} ({Of course not} 39. Qh8+ Ke7
40. Qxg7 Qd5+ 41. Kg1 Qb3 $17) 39... Qe5 $36 {[%emt 0:04:20] Black is pushing.}
40. d6 {[%emt 0:01:00][%cal Rh7h8]} f5 {[%emt 0:03:54]} (40... Rxd6 $15 41.
Qh8+ Ke7) 41. Qh8+ $11 {[%emt 0:00:00]} Kf7 {[%emt 0:02:44]} 42. Qb8 {[%emt 0:
03:35]} (42. Qc8 $11 {keeps the balance.} Rxd6 43. Qxb7+ Be7 44. Rxd6 Qxd6 45.
Ba2) 42... Be7 $17 {[%emt 0:00:00][%cal Re7d6]} (42... Qxb2 $2 43. Qc7 $3 Rxc7
44. dxc7 $18) 43. Ba2 $2 {[%emt 0:16:23]} (43. Qc8 $17 Rxd6 44. Rxd6 Qxd6 45.
Ba2) 43... Bxd6 $19 {[%emt 0:04:29] The board is on fire.} (43... Rxd6 44. Rxd6
Qxd6 45. Qxb7 $11) 44. Qc8 {[%emt 0:00:18]} Re7 {[%emt 0:01:29]} (44... Ke7 $19
45. Qg8 Rd8) 45. Bb3 {[%emt 0:05:20]} (45. Bb1 $17 {was called for.}) 45...
Qe4+ {[%emt 0:01:20]} ({Stronger than} 45... Qxb2 46. Rxd6 Qxb3 47. Rd8 $11)
46. Kh2 {[%emt 0:00:00] [#]} Qh4+ {[%emt 0:04:11]} ({Black should try} 46...
Bxg3+ $1 $19 47. fxg3 Qe2+ 48. Kg1 Qe3+ 49. Kh2 Qe2+ 50. Kg1 Qe3+ 51. Kh2 Qxb3)
47. Kg2 $17 {[%emt 0:00:48]} Qb4 {[%emt 0:00:41]} 48. Bc4 {[%emt 0:01:41]} Qxc4
{[%emt 0:02:00]} 49. Rxd6 $19 {[%emt 0:00:03] Endgame KQR-KQR} Qe4+ {[%emt 0:
00:27]} (49... Qxa4 $2 50. Rd8 Qe4+ 51. Kh2 $18) 50. Kg1 {[%emt 0:00:00]
Hoping for Rd8.} Qg4 {[%emt 0:03:56]} (50... Qxa4 $2 51. Rd8 Kf6 52. Rf8+ Kg5
53. Qd8 Kxh5 54. Qxe7 Qd1+ 55. Kh2 $18) 51. Rd7 {[%emt 0:01:45] [#]} Qxh5 {
[%emt 0:00:23]} (51... Qb4 $1 $17 {White must now prevent ...Rxd7.} 52. Rd1 b5)
52. Qxb7 $2 {[%emt 0:00:21] [#]} (52. Rxe7+ $11 {and White is okay.} Kxe7 53.
Qxb7+ Kf6 54. Qd7) 52... Qd1+ $3 {[%emt 0:00:18]} 53. Rxd1 {[%emt 0:00:00]}
Rxb7 {[%emt 0:00:05] KR-KR} 54. Rd2 $2 {[%emt 0:00:09]} (54. Rc1 {was worth a
try.}) 54... Rb4 {[%emt 0:01:26]} 55. Rc2 $2 {[%emt 0:00:06]} (55. Rd7+ Kf6 56.
b3) 55... Rxa4 {[%emt 0:00:05] Black is clearly winning.} 56. Rxc6 {[%emt 0:00:
04]} Rb4 {[%emt 0:00:18]} 57. Ra6 {[%emt 0:00:11]} a4 {[%emt 0:00:00]} 58. Kg2
{[%emt 0:00:06]} Kf6 {[%emt 0:00:13]} 59. Ra5 {[%emt 0:00:42]} h5 {[%emt 0:00:
13] Weighted Error Value: White=0.39/Black=0.19 (very precise)} 0-1